Workbook

Sheet TOSHIBA_HITACHI_SKYWORTH
H1: Сумма отгрузки | J1: =SUM(K9:K17,K19:K23,K25:K28) -> 0.0 | K1: руб.
H2: Количество к отгрузке | J2: =SUM(J9:J17,J19:J23,J25:J28) -> 0 | K2: шт.
H3: Объем, кг. | J3: =SUM(M9:M17,M19:M23,M25:M28) -> 0 | K3: кг.
B4: Смородин Виталий | H4: Объем, м3 | J4: =SUM(O9:O17,O19:O23,O25:O28) -> 0.00 | K4: м3
B5: phone +7-999-467-88-48 | H5: Кол-во паллет | J5: =SUM(Q9:Q17,Q19:Q23,Q25:Q28) -> 0.0 | K5: шт.
B6: e-mail smorodin@uniondistribution.eu
B7: e-mail smorodin@uniondistribution.eu | D7: EAN | E7: Цена партнера, отсрочка, руб. | F7: Цена партнера, предоплата, руб. | G7: Цена в интернете, руб. | H7: Фронтальная маржинальность, % | I7: Наценка партнера, % | K7: Сумма отгрузки, руб. | L7: Объем, кг. | M7: Общий, объем, кг. | N7: Объем, м3 | O7: Общий объем, м3 | P7: Мин. Кол-во в паллете, шт. | Q7: Кол-во паллет | R7: Consumption per Month | S7: Monthly Cost
A8: Артикул | B8: TOSHIBA | R8: =IF(G8<>"",IF(#REF!<>"",G8*#REF!,G8*30),"") ->  | S8: =IF(R8<>"",R8*#REF!,"") -> 
A9: 22S1650EV | B9: TOSHIBA 22S1650EV | C9: 6221127010527 | D9: FHD, T2 | E9: 7,992 | F9: =7832*(100%-1.5%) -> 7,715 руб. | G9: 9,990 руб. | H9: =(G9-E9)/G9 -> 20% | I9: =(G9-E9)/E9 -> 25% | K9: =J9*E9 -> 0 | L9: 3.3 | M9: =L9*J9 -> 0.0 | N9: 0.02 | O9: =N9*J9 -> 0.00 | P9: 70 | Q9: =J9/P9 -> 0 | R9: =IF(G9<>"",IF(#REF!<>"",G9*#REF!,G9*30),"") ->  | S9: =IF(R9<>"",R9*#REF!,"") -> 
A10: 32S2855EC | B10: TOSHIBA 32S2855EC | C10: 6221127015607 | D10: HD-R, DVB-T/T2/C/C2, CI+, 6W+6W, | E10: 11,192 | F10: 10,968 руб. | G10: 13,990 руб. | H10: =(G10-E10)/G10 -> 20% | I10: 25% | K10: 0 | L10: 4.0 | M10: 0.0 | N10: 0.06 | O10: 0.00 | P10: 32 | Q10: 0
A11: 32L5780EC | B11: TOSHIBA 32L5780EC | C11: 6221127013979 | D11: HD-R, SMART, FOXXUM PORTAL , T/T2/C | E11: 12,792 | F11: 12,536 руб. | G11: 15,990 руб. | H11: 20% | I11: 25% | K11: 0 | L11: 4.3 | M11: 0.0 | N11: 0.05 | O11: 0.00 | P11: 36 | Q11: 0 | R11: =IF(G11<>"",IF(#REF!<>"",G11*#REF!,G11*30),"") ->  | S11: =IF(R11<>"",R11*#REF!,"") -> 
A12: 40S2855EC | B12: TOSHIBA 40S2855EC | C12: 6221127015614 | D12: FULL HD, DVB-T/T2/C/C2, 6W +6W, USB 2.0 - 1 side, HDMI terminals - 2 | E12: 15,992 | F12: 15,672 руб. | G12: 19,990 руб. | H12: 20% | I12: =(G12-E12)/E12 -> 25% | K12: 0 | L12: 5.6 | M12: 0.0 | N12: 0.08 | O12: 0.00 | P12: 15 | Q12: 0 | R12: =IF(G12<>"",IF(#REF!<>"",G12*#REF!,G12*30),"") ->  | S12: =IF(R12<>"",R12*#REF!,"") -> 
A13: 43L5780EC | B13: TOSHIBA 43L5780EC | C13: 6221127013986 | D13: FULL HD, SMART, FOXXUM PORTAL , T/T2/C, 10W+10W | E13: 20,792 | F13: 20,376 руб. | G13: 25,990 руб. | H13: 20% | I13: 25% | K13: 0 | L13: 9.6 | M13: 0.0 | N13: 0.11 | O13: 0.00 | P13: 15 | Q13: 0 | R13: =IF(G13<>"",IF(#REF!<>"",G13*#REF!,G13*30),"") ->  | S13: =IF(R13<>"",R13*#REF!,"") -> 
A14: 43U7752EV | B14: TOSHIBA 43U7752EV | C14: 6221127016444 | D14: UHD (4K), Smart portal Zeasn, 8W+8W, DVB-T/T2/C/C2 | E14: 21,937 | F14: 21,500 руб. | G14: 28,490 руб. | H14: 23% | I14: 30% | K14: 0 | L14: 8.0 | M14: 0.0 | N14: 0.10 | O14: 0.00 | P14: 15 | Q14: 0 | R14: =IF(G14<>"",IF(#REF!<>"",G14*#REF!,G14*30),"") ->  | S14: =IF(R14<>"",R14*#REF!,"") -> 
A15: 49U5855EC | B15: TOSHIBA 49U5855EC | C15: 6221127016246 | D15: UHD (4K) (3840*2160) / CI+, ONKYO speaker, DVB-T/T2/C/C2 | E15: 26,992 | F15: 26,452 руб. | G15: 35,990 руб. | H15: 25% | I15: 33% | K15: 0 | L15: 9.7 | M15: 0.0 | N15: 0.16 | O15: 0.00 | P15: 12 | Q15: 0 | R15: =IF(G15<>"",IF(#REF!<>"",G15*#REF!,G15*30),"") ->  | S15: =IF(R15<>"",R15*#REF!,"") -> 
A16: 55U5855EC | B16: TOSHIBA 55U5855EC | C16: 6221127016253 | D16: UHD (4K) (3840*2160) / CI+, ONKYO speaker, DVB-T/T2/C/C2 | E16: 34,492 | F16: 33,802 руб. | G16: 45,990 руб. | H16: 25% | I16: 33% | K16: 0 | L16: 12.9 | M16: 0.0 | N16: 0.19 | O16: 0.00 | P16: 8 | Q16: 0
A17: 65U5855EC | B17: TOSHIBA 65U5855EC | C17: 6221127016260 | D17: UHD (4K) (3840*2160), CI+, DVB-T/T2/C/C2 | E17: 52,492 | F17: 51,442 руб. | G17: 69,990 руб. | H17: 25% | I17: 33% | K17: 0 | L17: 12.0 | M17: 0.0 | N17: 0.14 | O17: 0.00 | P17: 3 | Q17: 0
B18: HITACHI
A19: 40HB6T62 L | B19: HITACHI 40HB6T62 L | C19: 5014024002617 | D19: FHD, SMART, DLED, DVB-T2/C, встр. WIFI. | E19: 22,012 | F19: 21,581 руб. | G19: 25,990 руб. | H19: =(G19-F19)/G19 -> 17% | I19: =(G19-F19)/F19 -> 20% | K19: =J19*E19 -> 0 | L19: 10.3 | M19: =L19*J19 -> 0.0 | N19: 0.12 | O19: =N19*J19 -> 0.00 | P19: 8 | Q19: =J19/P19 -> 0
A20: 43HL15W64 | B20: HITACHI 43HL15W64 | C20: 5014024004376 | D20: UHD, HDR10, SMART, DLED, DVB-T2/C/S2, встр. WIFI. | E20: 24,888 | F20: 24,400 руб. | G20: 29,990 руб. | H20: =(G20-F20)/G20 -> 19% | I20: =(G20-F20)/F20 -> 23% | K20: =J20*E20 -> 0 | L20: 14.0 | M20: =L20*J20 -> 0.0 | N20: 0.15 | O20: =N20*J20 -> 0.00 | P20: 8 | Q20: =J20/P20 -> 0
A21: 49HL15W64 A | B21: HITACHI 49HL15W64 A | C21: 5014024004383 | D21: UHD, HDR10, SMART, DLED, DVB-T2/C/S2, встр. WIFI. | E21: 30,140 | F21: 29,550 руб. | G21: 35,990 руб. | H21: 18% | I21: 22% | K21: =J21*E21 -> 0 | L21: 16.3 | M21: =L21*J21 -> 0.0 | N21: 0.16 | O21: =N21*J21 -> 0.00 | P21: 8 | Q21: =J21/P21 -> 0
A22: 55HL15W64 A | B22: 55HL15W64 A | C22: 5014024004390 | D22: UHD, HDR10, SMART, DLED, DVB-T2/C/S2, встр. WIFI. | E22: 40,570 | F22: 39,776 руб. | G22: 49,990 руб. | H22: 20% | I22: 26% | K22: =J22*E22 -> 0 | L22: 20.2 | M22: =L22*J22 -> 0.0 | N22: 0.20 | O22: =N22*J22 -> 0.00 | P22: 8 | Q22: =J22/P22 -> 0
A23: 65HZ6W69 | B23: HITACHI 65HZ6W69 | C23: 5014024002662 | D23: UHD, HDR10, SMART, DLED, DVB-T2/C/S2, встр. WIFI. | E23: =60000*(100%+2%) -> 61,200 | F23: 60,000 руб. | G23: 77,990 руб. | H23: 23% | I23: 30% | K23: =J23*E23 -> 0 | L23: 43.6 | M23: =L23*J23 -> 0.0 | N23: 0.27 | O23: =N23*J23 -> 0.00 | P23: 1 | Q23: =J23/P23 -> 0
B24: SKYWORTH | M24: =L24*J24 -> 0.0 | O24: =N24*J24 -> 0.00
A25: 40E3 | B25: Skyworth 40E3 | D25: FHD, Opera Smart TV, DVB-T2/C/S2, встр. WIFI. | E25: 18,722 | F25: 18,355 руб. | G25: 22,999 руб. | H25: 20% | I25: 25% | K25: =J25*E25 -> 0 | M25: 0.0 | O25: 0.00 | P25: 10 | Q25: =J25/P25 -> 0
A26: 43U5 | B26: Skyworth 43U5 | C26: 4895018223550 | D26: UHD, Android, Smart, DVB-T2, Voice control | E26: 27,677 | F26: 27,135 руб. | G26: 32,990 руб. | H26: 21% | I26: 26% | K26: =J26*E26 -> 0 | L26: 12.3 | M26: 0.0 | N26: 0.11 | O26: 0.00 | P26: 11 | Q26: 0
A27: 50U5 | B27: Skyworth 50U5 | C27: 4895018221105 | D27: UHD, Android, Smart, DVB-T2, Voice control | E27: 32,586 | F27: 31,948 руб. | G27: 38,990 руб. | H27: 21% | I27: 26% | K27: =J27*E27 -> 0 | L27: 15.8 | M27: 0.0 | N27: 0.14 | O27: 0.00 | P27: 11 | Q27: 0
A28: 55U5 | B28: Skyworth 55U5 | C28: 4895018223536 | D28: UHD, Android, Smart, DVB-T2, Voice control | E28: 37,136 | F28: 36,408 руб. | G28: 47,999 руб. | H28: =(G28-F28)/G28 -> 24% | I28: =(G28-F28)/F28 -> 32% | K28: =J28*E28 -> 0 | L28: 18.7 | M28: =L28*J28 -> 0.0 | N28: 0.17 | O28: 0.00 | P28: 10 | Q28: 0
A29: 49G6 | B29: Skyworth 49G6 | D29: UHD, Android, Smart, DVB-T2, Voice control | E29: 33,026 | F29: 32,378 руб. | G29: 39,999 руб. | H29: =(G29-F29)/G29 -> 19% | I29: =(G29-F29)/F29 -> 24% | K29: =J29*E29 -> 0 | L29: 18.7 | M29: =L29*J29 -> 0.0 | N29: 0.17 | O29: =N29*J29 -> 0.00 | P29: 10 | Q29: =J29/P29 -> 0
J31: =SUM(J9:J17,J19:J23,J25:J28) -> 0 | K31: =SUM(K9:K17,K19:K23,K25:K28) -> 0

Sheet Кондиционеры Toshiba
B1: split-systems
B2: Настенные сплит-системы U2KH3S
B3: Надежная и экономичная сплит-система без инвертора. Внутренний блок весит всего 7 кг. Охлаждение, обогрев, осушение воздуха
B6: Модель (внешний/внутренний блок) | C6: Ключевые характеристики | D6: Цена партнера, предоплата | E6: Цена партнера, отсрочка | F6: РРЦ | G6: Наценка | H6: Заказ партнера | I6: Сумма
B7: RAS-09U2AH3S-EE/RAS-09U2KH3S-EE | C7: AF22, R410a HP, FS, 7/9/12/18/24K | D7: =16526*(100%-2%) -> 16,195 руб. | E7: 16,526 руб. | F7: 20,999 руб. | G7: =(ProductPriceList[[#This Row],[РРЦ]]-ProductPriceList[[#This Row],[Цена партнера, предоплата]])/ProductPriceList[[#This Row],[Цена партнера, предоплата]] -> 30% | H7: 15 | I7: =ProductPriceList[[#This Row],[Заказ партнера]]*ProductPriceList[[#This Row],[Цена партнера, предоплата]] -> 242,932 руб.
B8: RAS-12U2AH3S-EE/RAS-12U2KH3S-EE | C8: AF22, R410a HP, FS, 7/9/12/18/24K | D8: =18586*(100%-2%) -> 18,214 руб. | E8: 18,586 руб. | F8: 24,350 руб. | G8: =(ProductPriceList[[#This Row],[РРЦ]]-ProductPriceList[[#This Row],[Цена партнера, предоплата]])/ProductPriceList[[#This Row],[Цена партнера, предоплата]] -> 34% | H8: 24 | I8: =ProductPriceList[[#This Row],[Заказ партнера]]*ProductPriceList[[#This Row],[Цена партнера, предоплата]] -> 437,143 руб.
B9: RAS-18U2AH3S-EE/RAS-18U2KH3S-EE | C9: AF22, R410a HP, FS, 7/9/12/18/24K | D9: =27766*(100%-2%) -> 27,211 руб. | E9: 27,766 руб. | F9: 36,290 руб. | G9: =(ProductPriceList[[#This Row],[РРЦ]]-ProductPriceList[[#This Row],[Цена партнера, предоплата]])/ProductPriceList[[#This Row],[Цена партнера, предоплата]] -> 33% | I9: =ProductPriceList[[#This Row],[Заказ партнера]]*ProductPriceList[[#This Row],[Цена партнера, предоплата]] -> 0 руб.
B10: RAS-24U2AH3S-EE/RAS-24U2KH3S-EE | C10: AF22, R410a HP, FS, 7/9/12/18/24K | D10: =37561*(100%-2%) -> 36,810 руб. | E10: 37,561 руб. | F10: 47,080 руб. | G10: =(ProductPriceList[[#This Row],[РРЦ]]-ProductPriceList[[#This Row],[Цена партнера, предоплата]])/ProductPriceList[[#This Row],[Цена партнера, предоплата]] -> 28% | I10: =ProductPriceList[[#This Row],[Заказ партнера]]*ProductPriceList[[#This Row],[Цена партнера, предоплата]] -> 0 руб.
I11: =SUBTOTAL(109,[Сумма]) -> 680,075 руб.

Sheet WiZ_Performance
A1: Price List
A4: Company Name | B4: Union Distribution
A5: Brand | B5: WIZ
A6: City/State/Zip | B6: Novosibirsk
A7: Country | B7: Russia
A8: Last Updated: | B8: 2019-02-08
A10: Модель | B10: Ключевые характеристики | C10: Цена партнера, онлайн-канал | D10: Цена партнера, предоплата | E10: Цена партнера, отсрочка | F10: РРЦ | G10: Маржинальность, онлайн-канал | H10: Маржинальность, розница | I10: Маркетинг | J10: Заказ, шт. | K10: Сумма, руб.
A11: A E27 WiZ60 TR S | B11: A E27 WiZ60 TR - kit of 2 - with RC RGB & 806lm (2200K ~ 6500K) - tunable White and RGB, | C11: 4,328 руб | D11: 3,896 руб | E11: 3,973 руб | F11: 5,799 руб | G11: =(F11-C11)/F11 -> 25% | H11: =(F11-D11)/F11 -> 33% | I11: 10% | K11: =Table1[[#This Row],[Заказ, шт.]]*Table1[[#This Row],[Цена партнера, отсрочка]] -> 0 руб
A12: GU10 WiZ35 TR S | B12: GU10 WiZ35 TR S - WiZ TR - white - kit of 2 - with RC RGB & 345lm (2200K ~ 6500K) - tunable White and RGB | C12: 4,328 руб | D12: 3,896 руб | E12: 3,973 руб | F12: 5,799 руб | G12: =(F12-C12)/F12 -> 25% | H12: =(F12-D12)/F12 -> 33% | I12: 10% | K12: =Table1[[#This Row],[Заказ, шт.]]*Table1[[#This Row],[Цена партнера, отсрочка]] -> 0 руб
A13: WiZ RC | B13: WiZ remote control S - WiZ - white - kit of 1 | C13: 575 руб | D13: 517 руб | E13: 527 руб | F13: 799 руб | G13: 28% | H13: 35% | I13: 10% | K13: =Table1[[#This Row],[Заказ, шт.]]*Table1[[#This Row],[Цена партнера, отсрочка]] -> 0 руб
A14: GU10 WiZ35 TW-H | B14: GU10 WiZ35 TW - WiZ TW - white - kit of 1 - without RC 350lm (2700K ~ 6500K) - tunable White | C14: 1,441 руб | D14: 1,297 руб | E14: 1,323 руб | F14: 1,999 руб | G14: 28% | H14: 35% | I14: 10% | K14: =Table1[[#This Row],[Заказ, шт.]]*Table1[[#This Row],[Цена партнера, отсрочка]] -> 0 руб
A15: A E27 WiZ60 TW | B15: A E27 WiZ60 TW - WiZ TW - white - kit of 1 - without RC 806lm (2700K ~ 6500K) - tunable White | C15: 1,441 руб | D15: 1,297 руб | E15: 1,323 руб | F15: 1,999 руб | G15: 28% | H15: 35% | I15: 10% | K15: =Table1[[#This Row],[Заказ, шт.]]*Table1[[#This Row],[Цена партнера, отсрочка]] -> 0 руб
A16: A E27 WiZ60 TW | B16: A E27 WiZ60 TW - WiZ TW - white - kit of 2 - without RC 806lm (2700K ~ 6500K) - tunable White | C16: 2,885 руб | D16: 2,596 руб | E16: 2,648 руб | F16: 3,899 руб | G16: 26% | H16: 33% | I16: 10% | K16: =Table1[[#This Row],[Заказ, шт.]]*Table1[[#This Row],[Цена партнера, отсрочка]] -> 0 руб
A17: C E14 WiZ30 TR S | B17: C E14 WiZ30 TR S - WiZ TR - white - kit of 1 - without RC RGB & 400lm (2200K ~ 6500K) - tunable White and RGB | C17: 2,018 руб | D17: 1,817 руб | E17: 1,853 руб | F17: 2,699 руб | G17: 25% | H17: 33% | I17: 10% | K17: =Table1[[#This Row],[Заказ, шт.]]*Table1[[#This Row],[Цена партнера, отсрочка]] -> 0 руб
A18: C E14 WiZ30 TR S | B18: C E14 WiZ30 TR S - WiZ TR - white - kit of 2 - with RC RGB & 400lm (2200K ~ 6500K) - tunable White and RGB | C18: 4,328 руб | D18: 3,896 руб | E18: 3,973 руб | F18: 5,799 руб | G18: 25% | H18: 33% | I18: 10% | K18: =Table1[[#This Row],[Заказ, шт.]]*Table1[[#This Row],[Цена партнера, отсрочка]] -> 0 руб
A19: A E27 WiZ60 TR | B19: A E27 WiZ60 TR - WiZ TR - white - kit of 1 - without RC RGB & 806lm (2200K ~ 6500K) - tunable White and RGB | C19: 2,018 руб | D19: 1,817 руб | E19: 1,853 руб | F19: 2,699 руб | G19: 25% | H19: 33% | I19: 10% | K19: =Table1[[#This Row],[Заказ, шт.]]*Table1[[#This Row],[Цена партнера, отсрочка]] -> 0 руб
A20: G100 E27 WiZ100 TR | B20: G100 E27 WiZ100 TR - WiZ TR - white - kit of 1 - without RC RGB & 1550lm (2200K ~ 6500K) - tunable White and RGB | C20: 2,885 руб | D20: 2,596 руб | E20: 2,648 руб | F20: 3,899 руб | G20: 26% | H20: 33% | I20: 10% | K20: =Table1[[#This Row],[Заказ, шт.]]*Table1[[#This Row],[Цена партнера, отсрочка]] -> 0 руб
A21: QUEWZ-01 | B21: Quest - WiZ TR - Matt White - without RC Portable projector IP20Tunnable white & RGB | C21: 4,040 руб | D21: 3,636 руб | E21: 3,708 руб | F21: 5,399 руб | G21: 25% | H21: 33% | I21: 10% | K21: =Table1[[#This Row],[Заказ, шт.]]*Table1[[#This Row],[Цена партнера, отсрочка]] -> 0 руб

Sheet Лист1
